bitfinex-derivatives/quotes_ETHF0:USTF0_20250927
["timestamp","ask_amount","ask_price","bid_price","bid_amount"]
[1759012792349,0.338,4029.4,4029.3,1.44047]
[1759012792847,0.338,4029.4,4029.3,4.64827]
[1759012793049,0.33986787,4029.4,4029.3,4.64827]
[1759012793746,0.77666787,4029.4,4029.3,5.45084211]
[1759012794140,1.89903998,4029.4,4029.3,3.65427]
[1759012794444,1.89903998,4029.4,4029.3,3.90427]
[1759012799652,1.89903998,4029.4,4029.3,4.12837]
[1759012801053,0.77666787,4029.4,4029.3,4.35447]
[1759012801249,0.77666787,4029.4,4029.3,4.67767]
[1759012803453,0.77666787,4029.4,4029.3,4.35447]
[1759012804150,0.77666787,4029.4,4029.3,4.67767]
[1759012808350,0.4324,4028.9,4028.8,0.88793213]
[1759012808551,0.7519,4028.8,4028.7,1.36037213]
[1759012808749,0.7519,4028.8,4028.7,0.69654]
[1759012809262,0.7429,4028.7,4028.6,3.87163213]
[1759012809551,0.7429,4028.7,4028.6,4.31818213]
[1759012809752,0.7429,4028.7,4028.6,4.54248213]
[1759012810346,0.7429,4028.7,4028.6,4.75468213]
[1759012810757,0.3208,4028.7,4028.6,5.08208213]
[1759012810947,0.3379,4029.0,4028.9,0.88302]
[1759012811148,0.3379,4029.0,4028.9,1.21042]
[1759012811558,0.6587,4029.0,4028.9,1.21042]
[1759012812754,0.8739,4029.0,4028.9,0.4365]
[1759012812953,0.7429,4028.8,4028.7,0.66383213]
[1759012813955,0.7429,4028.8,4028.7,0.88813213]
[1759012814657,3.41656787,4029.4,4029.3,0.2243]
[1759012814859,3.63176787,4029.4,4029.3,0.4365]
[1759012815264,3.95256787,4029.4,4029.3,0.4365]
[1759012818261,0.74476787,4029.4,4029.3,0.4365]
[1759012819456,0.2069,4029.1,4029.0,0.99123213]
[1759012819664,0.7429,4029.1,4029.0,1.10033213]
[1759012820063,0.7429,4029.1,4029.0,0.66383213]
[1759012820259,1.32411,4029.0,4028.9,0.66383213]
[1759012820458,2.44648211,4029.0,4028.9,0.66383213]
[1759012821373,0.7429,4028.9,4028.8,1.33465213]
[1759012821867,0.7429,4028.9,4028.8,0.88813213]
[1759012822368,0.7429,4028.9,4028.8,0.2243]
[1759012823869,0.7429,4028.9,4028.8,0.7446]
[1759012824062,0.3208,4028.9,4028.8,2.11697211]
[1759012824275,0.3208,4028.9,4028.8,3.00108771]
[1759012824976,0.2202,4029.2,4029.1,0.66919]
[1759012825185,0.5496,4029.2,4029.1,0.7562]
[1759012825780,0.7547,4029.2,4029.1,0.7562]
[1759012826680,0.7547,4029.2,4029.1,0.4481]
[1759012827386,0.7547,4029.2,4029.1,0.7562]
[1759012827983,0.7547,4029.2,4029.1,0.4481]
[1759012829985,1.2012,4029.1,4029.0,0.66584912]
[1759012830286,1.2012,4029.1,4029.0,0.88854912]
[1759012830486,1.2012,4029.1,4029.0,1.11394912]
[1759012830686,1.2012,4029.1,4029.0,0.66584912]
[1759012833393,0.8778,4029.0,4028.9,0.66584912]
[1759012836291,0.4253,4028.8,4028.7,1.1068156]
[1759012836491,0.7547,4028.8,4028.7,1.1068156]
[1759012838191,0.7547,4028.8,4028.7,0.2227]
[1759012839688,0.44654,4028.7,4028.6,4.54117847]
[1759012839888,1.20124,4028.7,4028.6,3.2078]
[1759012840088,1.20124,4028.7,4028.6,3.4305]
[1759012841196,1.20124,4028.7,4028.6,3.6559]
[1759012841696,1.20124,4028.7,4028.6,0.4481]
[1759012842590,0.87184,4028.7,4028.6,0.88918456]
[1759012842895,1.20124,4028.7,4028.6,0.88918456]
[1759012843199,1.32436,4028.5,4028.4,3.2078]
[1759012843590,0.44658,4028.3,4028.2,1.11188456]
[1759012843796,1.20128,4028.3,4028.2,0.2227]
[1759012844188,1.20128,4028.3,4028.2,0.88932706]
[1759012846298,1.20128,4028.3,4028.2,0.2227]
[1759012848099,0.7547,4028.2,4028.1,0.66662706]
[1759012848297,0.87191,4028.1,4028.0,0.91662706]
[1759012848602,1.20131,4028.1,4028.0,0.91662706]
[1759012851504,1.20131,4028.1,4028.0,1.13932706]
[1759012853202,1.20131,4028.1,4028.0,0.4727]
[1759012860607,1.20131,4028.1,4028.0,0.25]
[1759012860805,0.7513,4027.9,4027.8,0.00182886]
[1759012861007,6.0013,4027.9,4027.8,0.00182886]
[1759012861202,6.0013,4027.9,4027.2,0.66662706]
[1759012861203,0.4364,4027.3,4027.2,0.66662706]
[1759012861507,0.7513,4027.2,4027.1,3.87442706]
[1759012861698,0.7513,4027.2,4027.1,3.2078]
[1759012862303,0.7513,4027.2,4027.1,3.21011183]
[1759012863018,0.7513,4027.2,4027.1,3.43561183]
[1759012863806,0.3149,4027.4,4027.3,0.66739]
[1759012864004,0.97105,4027.7,4027.6,0.4462]
[1759012864203,1.19795,4027.7,4027.6,0.7671]
[1759012864410,1.19795,4027.7,4027.6,0.4462]
[1759012867210,1.19795,4027.7,4027.6,0.2255]
[1759012867406,1.19795,4027.7,4027.1,3.90683183]
[1759012867407,1.19799,4027.4,4027.3,0.2255]
[1759012867611,1.19799,4027.4,4027.3,0.4462]
[1759012872217,1.18621,4027.2,4027.1,3.21011183]
[1759012872415,2.58345733,4027.2,4027.1,0.00231183]
[1759012872716,2.58345733,4027.2,4026.4,1.33337847]
[1759012872717,0.4468,4026.4,4026.3,0.66662706]
[1759012873015,0.1282,4026.5,4026.0,4.09698456]
[1759012873016,0.7395,4026.1,4026.0,3.87442706]
[1759012873216,2.13674733,4026.1,4026.0,3.2078]
[1759012873617,2.1389759,4026.1,4026.0,3.21017842]
[1759012874116,2.1389759,4026.1,4026.0,0.00237842]
[1759012879315,7.1389759,4026.1,4026.0,0.00237842]
[1759012879708,7.1389759,4026.1,4025.1,0.25]
[1759012879709,0.7395,4025.2,4025.1,0.25]
[1759012880020,0.7395,4025.1,4025.0,3.2078]
[1759012880524,0.1282,4025.0,4024.7,0.44698]
[1759012880821,0.7395,4024.9,4024.8,1.19547]
[1759012882612,0.7395,4024.9,4024.8,0.7485]
[1759012882813,0.8645,4024.9,4024.8,0.7485]
[1759012886718,0.125,4024.9,4024.8,0.7485]
[1759012888222,0.4636,4024.9,4024.8,0.7485]
[1759012891826,0.8878,4024.9,4024.8,0.7485]
[1759012892027,0.8878,4024.9,4024.8,0.2142]
[1759012895125,0.8878,4024.9,4024.7,0.44905741]
[1759012895321,0.7628,4024.8,4024.7,0.00207741]
[1759012897430,5.7628,4024.8,4024.7,0.00207741]
[1759012899433,0.7628,4024.8,4024.7,0.00207741]
[1759012899929,1.0128,4024.8,4024.7,0.00207741]
[1759012904234,0.7628,4024.8,4024.7,0.44027741]
[1759012904432,0.7628,4024.8,4024.7,0.76637741]
[1759012904737,0.7628,4024.8,4024.7,0.44027741]
[1759012910233,0.7628,4024.8,4024.7,0.76637741]
[1759012910637,0.7628,4024.8,4024.7,0.44027741]
[1759012910832,0.7628,4024.8,4024.7,0.76637741]
[1759012911335,0.7628,4024.8,4024.7,1.43300447]
[1759012911336,0.3386,4024.8,4024.7,1.43300447]
[1759012911534,0.125,4024.9,4024.8,1.21127]
[1759012912033,0.4636,4024.9,4024.8,1.21127]
[1759012917037,0.6735,4024.9,4024.8,1.21127]
[1759012918336,0.6735,4024.9,4024.8,1.46127]
[1759012920943,0.6735,4024.9,4024.8,1.0143]
[1759012920944,0.8816,4024.9,4024.8,1.0143]
[1759012921140,1.30595,4024.9,4024.8,0.66761381]
[1759012921444,0.734,4024.8,4024.7,0.66969122]
[1759012922149,0.734,4024.8,4024.7,0.00207741]
[1759012924749,0.5259,4024.8,4024.7,0.74857741]
[1759012925349,0.734,4024.8,4024.7,0.74857741]
[1759012925547,0.5259,4024.8,4024.7,0.74857741]
[1759012925954,0.734,4024.8,4024.7,0.74857741]
[1759012926648,0.734,4024.8,4024.7,0.43487741]
[1759012926848,0.734,4024.8,4024.7,0.74857741]
[1759012927155,0.734,4024.8,4024.7,0.43487741]
[1759012929158,0.734,4024.8,4024.7,0.77467741]
[1759012930056,0.734,4024.8,4024.7,1.6644311]
[1759012931857,0.734,4024.8,4024.7,1.3246311]
[1759012933560,0.316,4024.8,4024.7,1.6644311]
[1759012933860,0.5332,4024.8,4024.7,1.6644311]
[1759012936061,0.125,4024.9,4024.8,1.22077]
[1759012936360,0.125,4024.9,4024.8,2.59415005]
[1759012939063,3.7767,4026.0,4025.9,1.22065]
[1759012939259,0.3454,4026.0,4025.9,2.36044011]
[1759012939758,0.6769,4026.0,4025.9,2.36044011]
[1759012940062,0.6769,4026.0,4025.9,2.35984646]
[1759012941467,0.9004,4026.0,4025.9,1.47065]
[1759012944867,0.9004,4026.0,4025.9,0.88399781]
[1759012945061,1.21885,4025.9,4025.8,3.2078]
[1759012945365,2.34223005,4025.9,4025.8,3.2078]
[1759012946464,1.21887,4025.7,4025.6,0.66529781]
[1759012946658,1.00579,4025.5,4025.4,0.25]
[1759012946863,2.46597005,4025.5,4025.4,0.25]
[1759012947569,2.01908005,4025.5,4025.4,0.25]
[1759012950566,2.29564746,4025.5,4025.4,0.25]
[1759012952770,0.8957,4025.5,4025.4,0.4758]
[1759012952960,0.8957,4025.5,4025.4,1.0125]
[1759012953464,0.8957,4025.5,4025.4,0.6953]
[1759012954773,0.8957,4025.5,4025.4,0.4758]
[1759012956168,0.78371,4025.4,4025.3,3.2078]
[1759012956372,1.21891,4025.4,4025.3,3.4578]
[1759012957767,1.21891,4025.4,4025.3,3.6836]
[1759012957967,0.772,4025.4,4025.3,3.6836]
[1759012960078,0.772,4025.4,4025.3,4.34920467]
[1759012961076,0.772,4025.4,4025.3,4.12340467]
[1759012962678,0.772,4025.4,4025.3,4.34920467]
[1759012963771,0.772,4025.4,4025.3,4.88590467]
[1759012963975,0.3368,4025.4,4025.3,4.88590467]
[1759012965078,0.3368,4025.4,4025.3,4.2203]
[1759012965669,0.5622,4025.4,4025.3,4.2203]
[1759012966674,0.772,4025.4,4025.3,4.2203]
[1759012972778,0.5622,4025.4,4025.3,4.2203]
[1759012973084,0.5622,4025.4,4025.3,5.10949646]
[1759012975185,0.5622,4025.4,4025.3,4.2203]
[1759012975384,0.5622,4025.4,4025.3,5.11023209]
[1759012976075,0.5622,4025.4,4025.3,4.2203]
[1759012976583,0.5622,4025.4,4025.3,4.66722]
[1759012976976,0.3368,4025.4,4025.3,4.66722]
[1759012979480,0.33,4025.9,4025.8,1.23316]
[1759012979784,0.33,4025.9,4025.8,1.48316]
[1759012981184,4.60774746,4026.4,4026.0,0.44684]
[1759012981394,0.33222857,4026.1,4026.0,2.12336052]
[1759012982088,0.00222857,4026.1,4026.0,2.46476052]
[1759012982392,0.00222857,4026.1,4026.0,1.57454]
[1759012982887,0.00222857,4026.1,4026.0,2.46476052]
[1759012983277,0.00222857,4026.1,4026.0,1.57454]
[1759012984391,0.33222857,4026.1,4026.0,1.57454]
[1759012984887,0.33222857,4026.1,4026.0,1.48314]
[1759012985487,0.54952857,4026.1,4026.0,1.0363]
[1759012986292,0.54952857,4026.1,4026.0,1.70272629]
[1759012987989,0.54952857,4026.1,4026.0,1.70264703]
[1759012989392,0.54952857,4026.1,4026.0,1.0363]
[1759012989693,0.00222857,4026.1,4026.0,1.1277]
[1759012989987,0.00222857,4026.1,4026.0,2.01792052]
[1759012991082,0.00222857,4026.1,4026.0,1.1277]
[1759012994089,0.33722857,4026.1,4026.0,1.0363]
[1759012995192,0.75692857,4026.1,4026.0,0.89165023]
[1759012995489,0.78185,4025.9,4025.8,4.12355023]
[1759012995693,2.60149746,4025.9,4025.8,3.4578]
[1759012996284,2.60149746,4025.9,4025.8,3.2078]
[1759012996688,2.15464746,4025.9,4025.8,3.2078]
[1759012996892,2.15464746,4025.9,4025.8,3.9677]
[1759012998898,2.15464746,4025.9,4025.8,3.653]
[1759012999088,2.15464746,4025.9,4025.8,3.2078]
[1759013000992,0.7547,4025.9,4025.8,3.653]
[1759013001190,0.7547,4025.9,4025.8,3.9677]
[1759013002497,0.7547,4025.9,4025.8,4.63345023]
[1759013003398,0.7547,4025.9,4025.8,4.31875023]
[1759013004402,0.7547,4025.9,4025.8,4.63655023]
[1759013004696,0.7547,4025.9,4025.8,4.31875023]
[1759013005406,2.15464746,4025.9,4025.8,4.63655023]
[1759013005588,2.15464746,4025.9,4025.8,4.31875023]
[1759013005898,2.15464746,4025.9,4025.8,4.09935023]
[1759013006699,2.15464746,4025.9,4025.8,0.66575023]
[1759013006905,0.7613,4025.7,4025.6,1.11263023]
[1759013007598,2.16124746,4025.7,4025.6,1.33483023]
[1759013009104,2.16124746,4025.7,4025.6,1.86073023]
[1759013009311,0.7613,4025.7,4025.6,1.86073023]
[1759013011611,0.7613,4025.7,4025.6,1.86172551]
[1759013012318,0.5449,4025.7,4025.6,1.86172551]
[1759013012515,0.3217,4025.7,4025.6,1.19498]
[1759013017713,0.3217,4025.7,4025.6,2.08520052]
[1759013018008,0.7613,4025.7,4025.6,1.19498]
[1759013020119,0.7613,4025.7,4025.6,2.08520052]
[1759013021023,0.7613,4025.7,4025.6,1.19498]
[1759013021225,0.7613,4025.7,4025.6,0.2222]
[1759013021431,0.7613,4025.7,4025.6,0.88917222]
[1759013022728,0.7613,4025.7,4025.6,0.66697222]
[1759013023625,0.7613,4025.7,4025.6,0.88917222]
[1759013024227,0.7613,4025.7,4025.6,0.2222]
[1759013025630,1.20817,4025.7,4025.5,0.89022052]
[1759013025832,1.88435619,4025.6,4025.5,0.89022052]
[1759013028639,1.88435619,4025.6,4025.5,1.11242052]
[1759013033728,2.33123619,4025.6,4025.5,1.11242052]
[1759013033933,0.99099,4025.5,4025.4,0.66802187]
[1759013034531,1.30739,4025.5,4025.4,0.66802187]
[1759013036333,1.30739,4025.5,4025.3,0.66802187]
[1759013036638,1.85865619,4025.4,4025.3,0.16802187]
[1759013037541,2.10865619,4025.4,4025.3,0.16802187]
[1759013038343,0.7356,4025.2,4025.1,3.4132]
[1759013039948,0.7356,4025.2,4025.1,3.6262]
[1759013040334,0.7356,4025.2,4025.1,3.9493]
[1759013041340,0.7356,4025.2,4025.1,3.6262]
[1759013042242,0.7356,4025.2,4025.1,3.9493]
[1759013050044,1.1825,4025.2,4025.1,3.9493]
[1759013051244,1.1825,4025.2,4025.1,0.4184]
[1759013051447,0.44693,4025.0,4024.8,1.22792052]
[1759013051651,0.7486,4024.9,4024.8,0.89022052]
[1759013051850,1.19555,4024.8,4024.7,0.00207741]
[1759013052750,1.19555,4024.8,4024.7,0.22257741]
[1759013054055,1.19555,4024.8,4024.7,0.42827741]
[1759013054449,1.19555,4024.8,4024.7,0.76597741]
[1759013054754,0.7486,4024.8,4024.7,0.76597741]
[1759013055054,0.7486,4024.8,4024.7,0.42827741]
[1759013058053,1.87165619,4024.8,4024.7,0.42827741]
[1759013059249,1.87165619,4024.8,4024.3,1.14022052]
[1759013059454,1.87165619,4024.4,4024.3,0.4705]
[1759013060053,0.7486,4024.2,4024.1,3.4283]
[1759013060558,1.19562,4024.2,4024.1,0.00178042]
[1759013060753,2.31867619,4024.2,4024.1,0.00178042]
[1759013061554,1.87165619,4024.2,4024.1,0.00178042]
[1759013074657,2.14972328,4024.2,4024.1,0.00178042]
[1759013080158,1.3378,4023.5,4023.4,3.2078]
[1759013080460,2.98892328,4023.5,4023.4,3.2078]
[1759013080958,0.65693,4023.3,4023.2,0.2175]
[1759013081160,1.45653,4023.3,4023.2,0.00242506]
[1759013082964,4.66433,4023.3,4023.2,0.00242506]
[1759013083862,0.5496,4023.3,4023.2,0.73712506]
[1759013085970,0.7594,4023.3,4023.2,0.73712506]
[1759013086165,0.7594,4023.3,4023.2,0.42922506]
[1759013089869,0.7594,4023.3,4023.2,0.21992506]
[1759013090593,0.7594,4023.3,4023.2,0.00242506]
[1759013090780,0.7594,4022.6,4022.5,0.4675]
[1759013091383,0.7594,4022.6,4022.5,0.7347]
[1759013091684,0.3427513,4022.6,4022.5,0.73776594]
[1759013091881,0.5520513,4022.6,4022.5,0.73776594]
[1759013092386,0.7618513,4022.6,4022.5,0.73776594]
[1759013094084,0.7618513,4022.6,4022.5,0.42986594]
[1759013094580,0.7618513,4022.6,4022.5,0.00306594]
[1759013096883,5.5525513,4022.6,4021.9,3.2078]
[1759013097089,5.5525513,4022.6,4021.9,3.9822]
[1759013097090,0.8788,4022.0,4021.9,3.9822]
[1759013097286,0.5401,4022.0,4021.9,3.9822]
[1759013097589,0.8788,4022.0,4021.9,3.4292]
[1759013097784,0.8788,4022.0,4021.9,3.2078]
[1759013097785,1.1298,4022.0,4021.9,3.2078]
[1759013097986,1.1298,4022.0,4021.6,1.22171]
[1759013097987,0.7455,4021.7,4021.6,1.22171]
[1759013098185,0.7455,4021.7,4021.6,0.00245578]
[1759013099197,0.9965,4021.7,4021.6,0.00245578]
[1759013099586,0.7455,4021.7,4021.6,0.22385578]
[1759013099792,0.9965,4021.7,4021.6,0.77685578]
[1759013100392,0.9965,4021.7,4021.6,0.43915578]
[1759013100985,0.9965,4021.7,4021.6,0.22385578]
[1759013101500,0.9965,4021.7,4021.6,0.00245578]
[1759013102389,0.7455,4021.7,4021.6,0.00245578]
[1759013102589,0.9965,4021.7,4021.6,0.00245578]
[1759013102896,0.9965,4021.7,4021.6,0.22385578]
[1759013103401,0.9965,4021.7,4021.6,0.00245578]
[1759013106486,4.2043,4021.7,4021.6,0.00245578]
[1759013107586,0.1333,4022.0,4021.9,0.44728]
[1759013107791,0.5401,4022.0,4021.9,0.7744]
[1759013108191,0.5401,4022.0,4021.9,1.22168]
[1759013109302,0.893,4022.0,4021.9,0.88398]
[1759013109599,0.893,4022.0,4021.9,0.44728]
[1759013109896,0.893,4022.0,4021.9,0.88968]
[1759013110202,0.893,4022.0,4021.9,1.22058]
[1759013111699,0.676,4022.0,4021.9,1.22058]
[1759013111902,0.3158,4022.0,4021.9,1.22058]
[1759013112296,0.3314,4022.4,4022.3,1.22053]
[1759013112495,0.2534513,4022.6,4022.5,1.22051]
[1759013112801,0.0024513,4022.6,4022.5,1.22051]
[1759013113001,0.3338513,4022.6,4022.5,1.22051]
[1759013113392,0.0024513,4022.6,4022.5,1.34361]
[1759013113705,0.0024513,4022.6,4022.5,4.55141]
[1759013113900,0.3338513,4022.6,4022.5,4.42831]
[1759013114598,0.7753513,4022.6,4022.5,4.09741]
[1759013114994,0.7753513,4022.6,4022.5,3.65501]
[1759013115304,0.7729,4022.1,4022.0,3.87487]
[1759013115503,0.7729,4022.1,4022.0,4.09747]
[1759013115799,0.7729,4022.1,4022.0,4.42837]
[1759013117405,0.7729,4022.1,4022.0,5.09522687]
[1759013117704,0.3314,4022.1,4022.0,5.09522687]
[1759013119406,0.5559,4022.1,4022.0,5.09522687]
[1759013120107,0.5559,4022.1,4022.0,4.42837]
[1759013122709,0.5559,4022.1,4022.0,4.67937]
[1759013134321,0.5559,4022.1,4022.0,5.56959052]
[1759013137423,0.5559,4022.1,4022.0,4.67937]
[1759013140418,0.5559,4022.1,4022.0,6.01470079]
[1759013142026,0.5559,4022.1,4022.0,2.80690079]
[1759013142530,10.8039832,4022.1,4021.9,1.33533079]
[1759013142824,0.7656,4021.8,4021.7,0.66969274]
[1759013143022,1.8906232,4021.8,4021.7,0.66969274]
[1759013143426,1.8906232,4021.8,4021.6,0.00245578]
[1759013143427,1.2129,4021.7,4021.6,0.00245578]
[1759013145428,0.7656,4021.7,4021.6,0.00245578]
[1759013147026,1.0166,4021.7,4021.6,0.00245578]
[1759013148228,0.3337,4021.3,4021.1,0.66969274]
[1759013148428,0.7656,4021.2,4021.1,0.89149274]
[1759013148925,0.7656,4021.2,4021.1,1.11589274]
[1759013149127,0.7656,4021.2,4021.1,1.11818173]
[1759013149327,0.7656,4021.2,4021.1,0.44848899]
[1759013149524,0.7656,4021.2,4021.1,0.78618899]
[1759013151730,0.3337,4021.2,4021.1,0.78618899]
[1759013151934,0.3337,4021.4,4021.3,1.23124]
[1759013152436,0.5486,4021.4,4021.3,1.23124]
[1759013154840,0.5486,4021.4,4021.3,2.3562632]
[1759013155041,0.99838,4022.0,4021.3,4.5838232]
[1759013155240,0.99838,4022.0,4021.9,0.4479]
[1759013155541,0.99838,4022.0,4021.9,0.7633]
[1759013156134,0.6782,4022.0,4021.9,0.7633]
[1759013156736,0.5511,4022.0,4021.9,0.7633]
[1759013159644,0.5511,4022.0,4021.9,1.8883232]
[1759013161846,0.3282,4022.0,4021.9,1.8883232]
[1759013163550,0.3282,4022.2,4022.1,0.3154]
[1759013164154,0.7606,4022.2,4022.1,0.7633]
[1759013165955,0.7606,4022.2,4022.1,0.4479]
[1759013166155,0.4473,4021.7,4021.6,0.66969274]
[1759013166457,0.8877,4021.5,4021.4,1.11702274]
[1759013166652,0.8877,4021.5,4021.4,0.66953]
[1759013166954,0.8877,4021.5,4021.4,0.89523]
[1759013167951,0.8877,4021.5,4021.4,1.21063]
[1759013168152,0.8877,4021.5,4021.4,0.7633]
[1759013168353,0.8877,4021.5,4021.4,0.4479]
[1759013168754,0.8877,4021.5,4021.4,1.11622309]
[1759013170451,0.8877,4021.5,4021.4,0.4479]
[1759013171152,0.8877,4021.5,4021.4,1.11645694]
[1759013171356,0.8877,4021.5,4021.4,0.89075694]
[1759013172958,0.8877,4021.5,4021.4,1.41765694]
[1759013173550,1.30247,4022.0,4021.9,0.2164]
[1759013173955,1.17539,4021.8,4021.7,0.2183]
[1759013174150,1.17539,4021.8,4021.7,0.4347]
[1759013175258,0.7281,4021.8,4021.7,0.4347]
[1759013182563,0.5208,4021.8,4021.7,1.10352396]
[1759013182761,0.3092,4021.8,4021.7,1.46402366]
[1759013183063,0.3092,4021.8,4021.7,0.5711]
[1759013186169,0.5208,4021.8,4021.7,0.5711]
[1759013187665,0.3092,4021.8,4021.7,0.5711]
[1759013189167,0.5298,4021.8,4021.7,0.5711]
[1759013189766,0.5298,4021.8,4021.7,0.4347]
[1759013189966,0.7486,4021.8,4021.7,0.4347]
[1759013190657,0.7486,4021.8,4021.7,0.89199673]
[1759013195066,0.4473,4021.7,4021.6,0.89199673]
[1759013195374,0.897,4021.5,4021.4,0.89199673]
[1759013197865,0.897,4021.5,4021.4,1.31469673]
[1759013198468,0.4576,4021.5,4021.4,0.5591]
[1759013198775,0.8964,4022.0,4021.9,0.4227]
[1759013199775,0.8964,4022.0,4021.9,0.2121]
[1759013199975,1.21658,4021.9,4021.8,0.66913293]
[1759013200776,0.7693,4021.9,4021.8,0.66913293]
[1759013200972,0.7693,4021.9,4021.8,0.88123293]
[1759013201575,3.9771,4021.9,4021.8,0.2121]
[1759013202574,4.09448,4021.9,4021.7,1.36742293]
[1759013202773,0.7693,4021.8,4021.7,1.57952293]
[1759013204083,0.7693,4021.8,4021.7,0.91039]
[1759013207167,0.7693,4021.8,4021.7,0.44729]
[1759013207372,0.897,4021.5,4021.4,4.09997724]
[1759013207679,2.29911851,4021.5,4021.4,3.87737025]
[1759013207879,1.21663,4021.4,4021.3,0.66957025]
[1759013208077,1.21663,4021.4,4021.1,0.67185924]
[1759013208078,0.44736,4021.2,4021.1,0.67185924]
[1759013208374,0.44736,4021.2,4020.7,0.89217724]
[1759013208375,0.4474,4020.8,4020.7,0.89217724]
[1759013208577,0.7693,4020.8,4020.7,0.89217724]
[1759013209181,0.3299,4020.7,4020.6,0.89217724]
[1759013209383,0.7693,4020.7,4020.6,0.89417445]
[1759013210179,0.7693,4020.7,4020.6,0.00199721]
[1759013211674,0.3299,4020.7,4020.6,0.21409721]
[1759013211883,0.5505,4020.7,4020.6,2.41063572]
[1759013212080,0.5505,4020.7,4020.6,2.27423572]
[1759013212879,0.7693,4020.7,4020.6,0.44941721]
[1759013213280,0.7693,4020.7,4020.6,0.87971721]
[1759013213983,0.5505,4020.7,4020.6,0.87971721]
[1759013214180,0.5505,4020.7,4020.6,1.01631721]
[1759013214376,0.5505,4020.7,4020.6,0.87971721]
[1759013215079,0.5505,4020.7,4020.6,1.01631721]
[1759013215984,0.5505,4020.7,4020.6,0.87971721]
[1759013216181,0.777,4020.7,4020.6,0.87971721]
[1759013217383,0.777,4020.7,4020.6,0.21409721]
[1759013218580,0.777,4020.7,4020.6,0.00199721]
[1759013218779,0.777,4020.7,4020.6,0.22019721]
[1759013220286,0.777,4020.7,4020.6,0.00199721]
[1759013221689,0.777,4020.7,4020.6,0.22019721]
[1759013222888,0.777,4020.7,4020.6,0.00199721]
[1759013238994,0.897,4020.0,4019.9,0.89217724]
[1759013239292,0.7702,4019.8,4019.2,4.09997724]
[1759013239486,0.7702,4019.3,4019.2,4.09997724]
[1759013239686,0.7702,4019.3,4019.2,4.30937724]
[1759013239892,0.77260838,4019.3,4019.2,4.31157601]
[1759013240297,0.77260838,4019.3,4019.2,3.41939877]
[1759013241794,0.33880838,4019.3,4019.2,5.17251728]
[1759013241995,0.33880838,4019.3,4019.2,5.42351728]
[1759013242594,0.00240838,4019.3,4019.2,5.42351728]
[1759013242791,0.56600838,4019.3,4019.2,3.77039877]
[1759013243099,0.33880838,4019.3,4019.2,5.17251728]
[1759013243597,0.00240838,4019.3,4019.2,11.50784807]
[1759013243799,0.00240838,4019.3,4019.2,10.17251728]
[1759013243993,0.44269163,4020.0,4019.9,0.8861]
[1759013244191,0.3183,4020.0,4019.9,5.88811851]
[1759013244792,0.8779,4020.5,4020.4,0.88865]
[1759013244999,0.8805247,4020.5,4020.4,0.88865]
[1759013246004,0.3209247,4020.5,4020.4,1.02975]
[1759013246600,0.6545247,4020.5,4020.4,1.02975]
[1759013246795,0.8772247,4020.5,4020.4,0.88865]
[1759013247895,0.3183,4020.4,4020.1,0.89105247]
[1759013248201,0.7511,4020.2,4020.1,0.44748]
[1759013248901,0.7511,4020.2,4020.1,0.88868]
[1759013249298,0.4444247,4020.5,4020.4,0.88865]
[1759013249606,0.3209247,4020.5,4020.4,2.68286851]
[1759013250198,0.4444247,4020.5,4020.4,2.68286851]
[1759013250602,0.6545247,4020.5,4020.4,2.54176851]
[1759013250795,0.8772247,4020.5,4020.4,2.54176851]
[1759013250995,0.8772247,4020.5,4020.4,0.251]
[1759013252599,0.8772247,4020.5,4020.4,0.4677]
[1759013253307,0.8772247,4020.5,4020.4,0.2167]
[1759013253502,0.7511,4020.4,4020.3,0.66415]
[1759013253806,0.7511,4020.4,4020.3,0.88865]
[1759013255002,0.3183,4020.4,4020.3,1.02975]
[1759013255207,0.3183,4020.4,4020.3,1.92080247]
[1759013258615,0.3183,4020.4,4020.3,3.04650511]
[1759013259510,0.5284,4020.4,4020.3,2.90540511]
[1759013259714,0.7511,4020.4,4020.3,2.01435264]
[1759013261817,0.7511,4020.4,4020.3,0.44745]
[1759013262209,2.32425264,4020.4,4020.2,0.251]
[1759013262403,0.3183,4020.3,4020.2,0.69846]
[1759013262614,0.7511,4020.3,4020.2,0.69846]
[1759013264719,0.7511,4020.3,4020.2,1.13966]
[1759013266010,0.7511,4020.3,4020.2,0.91516]
[1759013268214,0.3183,4020.2,4020.1,0.44747]
[1759013268411,0.7511,4020.2,4020.1,1.332292]
[1759013270218,0.7511,4020.2,4020.1,0.66417]
[1759013270419,0.7511,4020.2,4020.1,0.2167]
[1759013273322,0.3183,4020.2,4020.1,1.33225247]
[1759013273519,0.7618,4020.2,4020.1,1.33225247]
[1759013274626,0.7618,4020.2,4020.1,2.45795511]
[1759013274921,0.7618,4020.2,4020.1,1.56690264]
[1759013275124,0.7618,4020.2,4020.1,2.45949053]
[1759013275723,0.7618,4020.2,4020.1,1.33378789]
[1759013275924,0.7618,4020.2,4020.1,2.45949053]
[1759013278927,0.7618,4020.2,4020.1,1.56690264]
[1759013279128,0.7618,4020.2,4020.1,1.70820264]
[1759013279828,0.3183,4020.2,4020.1,1.95920264]
[1759013280130,0.4533247,4020.5,4020.4,1.00305]
[1759013280329,0.4533247,4020.5,4020.4,5.33655264]
[1759013280520,0.4533247,4020.5,4020.4,6.22899606]
[1759013280829,0.0026247,4020.5,4020.4,6.67188343]
[1759013281128,0.3298247,4020.5,4020.4,6.67188343]
[1759013284131,0.0026247,4020.5,4020.4,6.67188343]
[1759013285033,0.3298247,4020.5,4020.4,6.67188343]
[1759013287326,0.6840247,4020.5,4020.4,6.67188343]
[1759013290331,0.6840247,4020.5,4020.4,5.33655264]
[1759013291035,0.4613247,4020.5,4020.4,5.33655264]
[1759013291435,0.3298247,4020.5,4020.4,5.33655264]
[1759013295337,0.4636247,4020.5,4020.4,5.33655264]
[1759013300137,0.3298247,4020.5,4020.4,5.33655264]
[1759013301337,0.3298247,4020.5,4020.4,6.67188343]
[1759013303334,0.3173,4020.9,4020.8,1.0054]